[Event "*** MasterClass Titled Tuesday Blitz"]
[Site "Chess.com"]
[Date "2017.09.05"]
[Round "4"]
[White "IamSchrodingersCat"]
[Black "Alexander_Moskalenko"]
[Result "0-1"]
[WhiteElo "2425"]
[BlackElo "2664"]
[TimeControl "180+2"]
[EndTime "13:59:52 PDT"]
[Termination "Alexander_Moskalenko won by resignation"]

1. e4 {[%clk 0:03:01.9]} 1... e6 {[%clk 0:02:59.5]} 2. d4 {[%clk 0:03:01.2]}
2... d5 {[%clk 0:03:01.4]} 3. Nc3 {[%clk 0:03:02.3]} 3... Nf6 {[%clk 0:02:54.9]}
4. Bg5 {[%clk 0:02:57.9]} 4... Bb4 {[%clk 0:02:54.6]} 5. e5 {[%clk 0:02:58.6]}
5... h6 {[%clk 0:02:46.5]} 6. Bd2 {[%clk 0:02:58.9]} 6... Bxc3 {[%clk 0:02:46]}
7. bxc3 {[%clk 0:03:00.8]} 7... Ne4 {[%clk 0:02:47.7]} 8. Qg4 {[%clk 0:03:01.7]}
8... Kf8 {[%clk 0:02:47.4]} 9. Bd3 {[%clk 0:03:01.8]} 9... Nxd2 {[%clk
0:02:46.4]} 10. Kxd2 {[%clk 0:03:03.7]} 10... c5 {[%clk 0:02:48.1]} 11. h4
{[%clk 0:03:03]} 11... Nc6 {[%clk 0:02:38.9]} 12. Rh3 {[%clk 0:02:47.6]} 12...
c4 {[%clk 0:02:30.4]} 13. Bf1 {[%clk 0:02:47.3]} 13... b5 {[%clk 0:02:31.9]} 14.
a3 {[%clk 0:02:42.6]} 14... a5 {[%clk 0:02:30.1]} 15. Ne2 {[%clk 0:02:24.8]}
15... Bd7 {[%clk 0:02:30.3]} 16. Rg3 {[%clk 0:02:17.3]} 16... Rg8 {[%clk
0:02:30.8]} 17. Rf3 {[%clk 0:02:17.2]} 17... Ne7 {[%clk 0:02:24.5]} 18. Qh5
{[%clk 0:01:15]} 18... Nf5 {[%clk 0:02:14.2]} 19. Rxf5 {[%clk 0:01:15.1]} 19...
exf5 {[%clk 0:02:15.2]} 20. Nf4 {[%clk 0:01:13.6]} 20... Be6 {[%clk 0:02:16.5]}
21. g3 {[%clk 0:01:10]} 21... Ke7 {[%clk 0:01:59.7]} 22. Rb1 {[%clk 0:01:03.1]}
22... Qd7 {[%clk 0:02:00.2]} 23. Bg2 {[%clk 0:00:53.2]} 23... Rgd8 {[%clk
0:01:53]} 24. Bh3 {[%clk 0:00:27.8]} 24... Kf8 {[%clk 0:01:52.1]} 25. Rg1 {[%clk
0:00:25.3]} 25... b4 {[%clk 0:01:51.3]} 26. axb4 {[%clk 0:00:26.1]} 26... axb4
{[%clk 0:01:52.8]} 27. cxb4 {[%clk 0:00:27.4]} 27... c3+ {[%clk 0:01:54.7]} 28.
Kxc3 {[%clk 0:00:24.8]} 28... Rdc8+ {[%clk 0:01:49.7]} 29. Kd2 {[%clk
0:00:24.5]} 29... Ra2 {[%clk 0:01:50.8]} 30. Rc1 {[%clk 0:00:22.9]} 30... Qa4
{[%clk 0:01:51.4]} 31. Bxf5 {[%clk 0:00:15.3]} 31... Qxb4+ {[%clk 0:01:46.3]}
32. Ke3 {[%clk 0:00:10.1]} 32... Qa3+ {[%clk 0:01:35]} 33. Kd2 {[%clk
0:00:08.4]} 33... Qc3+ {[%clk 0:01:36.5]} 34. Kd1 {[%clk 0:00:04.7]} 34... Qxd4+
{[%clk 0:01:36.8]} 35. Nd3 {[%clk 0:00:06.3]} 35... Rc6 {[%clk 0:01:18.6]} 36.
Bxe6 {[%clk 0:00:07.1]} 36... fxe6 {[%clk 0:01:20.5]} 37. Qf3+ {[%clk 0:00:08]}
37... Kg8 {[%clk 0:01:21.9]} 38. Qe2 {[%clk 0:00:06.2]} 38... Rc8 {[%clk
0:00:47.2]} 39. Qf3 {[%clk 0:00:06.6]} 39... Qa4 {[%clk 0:00:46.2]} 40. Qe2
{[%clk 0:00:04.3]} 40... Qa6 {[%clk 0:00:46.7]} 41. Kd2 {[%clk 0:00:04.6]} 41...
Qa4 {[%clk 0:00:37.2]} 42. Kd1 {[%clk 0:00:05.9]} 42... Kh8 {[%clk 0:00:37.4]}
43. Qd2 {[%clk 0:00:06.9]} 43... Qd4 {[%clk 0:00:37.1]} 44. Qf4 {[%clk
0:00:07.7]} 44... Qc3 {[%clk 0:00:32]} 45. Qd2 {[%clk 0:00:08.1]} 45... Ra1
{[%clk 0:00:23.3]} 46. Qxc3 {[%clk 0:00:08.4]} 46... Rxc1+ {[%clk 0:00:24.2]}
47. Kxc1 {[%clk 0:00:10.3]} 47... Rxc3 {[%clk 0:00:25.6]} 48. Kd2 {[%clk
0:00:12.2]} 48... Rc4 {[%clk 0:00:25.8]} 49. Nf4 {[%clk 0:00:12]} 49... Rc6
{[%clk 0:00:26]} 50. Kd3 {[%clk 0:00:11.7]} 50... Kg8 {[%clk 0:00:27.3]} 51. Ne2
{[%clk 0:00:13]} 51... Kf7 {[%clk 0:00:28.4]} 52. Nd4 {[%clk 0:00:13.7]} 52...
Rc4 {[%clk 0:00:28.8]} 53. c3 {[%clk 0:00:12.3]} 53... g5 {[%clk 0:00:29.4]} 54.
hxg5 {[%clk 0:00:12.6]} 54... hxg5 {[%clk 0:00:31.3]} 55. f3 {[%clk 0:00:10.9]}
55... Ra4 {[%clk 0:00:31.5]} 56. Nc2 {[%clk 0:00:11.8]} 56... Ra8 {[%clk
0:00:27.6]} 57. Ne3 {[%clk 0:00:10.1]} 57... Rh8 {[%clk 0:00:27.5]} 58. f4
{[%clk 0:00:10.9]} 58... Kg6 {[%clk 0:00:23.4]} 59. Nc2 {[%clk 0:00:07.7]} 59...
Rh3 {[%clk 0:00:21]} 60. fxg5 {[%clk 0:00:08.9]} 60... Rxg3+ {[%clk 0:00:22.5]}
61. Kd4 {[%clk 0:00:08.3]} 61... Rg4+ {[%clk 0:00:23.9]} 62. Kc5 {[%clk
0:00:09.2]} 62... Rc4+ {[%clk 0:00:24.4]} 63. Kd6 {[%clk 0:00:10.7]} 63... Rxc3
{[%clk 0:00:23.5]} 64. Nd4 {[%clk 0:00:12.2]} 64... Rc4 {[%clk 0:00:24.9]} 65.
Nxe6 {[%clk 0:00:12.5]} 65... d4 {[%clk 0:00:26.1]} 66. Kd5 {[%clk 0:00:13.3]}
66... d3 {[%clk 0:00:26.9]} 67. Kxc4 {[%clk 0:00:05.4]} 67... d2 {[%clk
0:00:28]} 68. Nf4+ {[%clk 0:00:07.4]} 68... Kh7 {[%clk 0:00:26.4]} 69. g6+
{[%clk 0:00:08.1]} 69... Kg8 {[%clk 0:00:27.4]} 70. Kd5 {[%clk 0:00:07.7]} 70...
d1=Q+ {[%clk 0:00:28.7]} 71. Ke6 {[%clk 0:00:09.6]} 71... Qg4+ {[%clk
0:00:28.4]} 0-1

[Event "*** MasterClass Titled Tuesday Blitz"]
[Site "Chess.com"]
[Date "2017.09.05"]
[Round "4"]
[White "jncool68"]
[Black "Kirill_Klukin"]
[Result "1/2-1/2"]
[WhiteElo "2466"]
[BlackElo "2513"]
[TimeControl "180+2"]
[EndTime "14:00:12 PDT"]
[Termination "Game drawn by repetition"]

1. e4 {[%clk 0:02:14.5]} 1... c5 {[%clk 0:02:58.9]} 2. Nf3 {[%clk 0:02:15.1]}
2... Nc6 {[%clk 0:03:00.3]} 3. d4 {[%clk 0:02:16.7]} 3... cxd4 {[%clk
0:03:01.8]} 4. Nxd4 {[%clk 0:02:18.6]} 4... e5 {[%clk 0:03:03.3]} 5. Nb5 {[%clk
0:02:19.2]} 5... d6 {[%clk 0:03:04.1]} 6. N1c3 {[%clk 0:02:20.3]} 6... a6 {[%clk
0:03:04.7]} 7. Na3 {[%clk 0:02:21.8]} 7... Be7 {[%clk 0:03:06.2]} 8. Nc4 {[%clk
0:02:20.7]} 8... b5 {[%clk 0:03:07]} 9. Ne3 {[%clk 0:02:21.9]} 9... Nf6 {[%clk
0:03:08.5]} 10. g3 {[%clk 0:02:21.4]} 10... h5 {[%clk 0:03:08]} 11. Bg2 {[%clk
0:02:21.5]} 11... h4 {[%clk 0:03:09.3]} 12. Ncd5 {[%clk 0:02:13.4]} 12... Be6
{[%clk 0:03:06.4]} 13. Nxf6+ {[%clk 0:02:09.5]} 13... Bxf6 {[%clk 0:03:06.4]}
14. Nd5 {[%clk 0:02:11.1]} 14... h3 {[%clk 0:02:50.9]} 15. Bf3 {[%clk
0:02:10.5]} 15... Nd4 {[%clk 0:02:50.7]} 16. c3 {[%clk 0:02:07.2]} 16... Nxf3+
{[%clk 0:02:23.9]} 17. Qxf3 {[%clk 0:02:09.1]} 17... Bxd5 {[%clk 0:02:21]} 18.
exd5 {[%clk 0:02:11]} 18... Bg5 {[%clk 0:02:12.7]} 19. O-O {[%clk 0:02:04.6]}
19... Bxc1 {[%clk 0:02:02.6]} 20. Raxc1 {[%clk 0:02:06.5]} 20... Qd7 {[%clk
0:02:03.9]} 21. c4 {[%clk 0:02:01.9]} 21... O-O {[%clk 0:02:00.9]} 22. b3 {[%clk
0:01:56.3]} 22... Rac8 {[%clk 0:01:58.1]} 23. Qe4 {[%clk 0:01:55.8]} 23... Rc5
{[%clk 0:01:50.6]} 24. f4 {[%clk 0:01:52.8]} 24... f5 {[%clk 0:01:43.5]} 25. Qe2
{[%clk 0:01:51.6]} 25... e4 {[%clk 0:01:40.7]} 26. Qh5 {[%clk 0:01:51]} 26...
Rfc8 {[%clk 0:01:37.1]} 27. Qxh3 {[%clk 0:01:42.1]} 27... bxc4 {[%clk
0:01:35.9]} 28. bxc4 {[%clk 0:01:44]} 28... Rxc4 {[%clk 0:01:36.5]} 29. Rxc4
{[%clk 0:01:44.2]} 29... Rxc4 {[%clk 0:01:38.4]} 30. Qg2 {[%clk 0:01:44.6]}
30... Qa7+ {[%clk 0:01:37.3]} 31. Kh1 {[%clk 0:01:42.8]} 31... Qc5 {[%clk
0:01:36.2]} 32. g4 {[%clk 0:01:38.1]} 32... Rc2 {[%clk 0:01:35.3]} 33. Qg3
{[%clk 0:01:36.7]} 33... Qxd5 {[%clk 0:01:29.7]} 34. gxf5 {[%clk 0:01:36.2]}
34... e3+ {[%clk 0:00:49.4]} 35. Kg1 {[%clk 0:01:35.8]} 35... Qd4 {[%clk
0:00:48.9]} 36. Re1 {[%clk 0:01:30.4]} 36... Rc3 {[%clk 0:00:24.4]} 37. Kh1
{[%clk 0:00:48]} 37... Qe4+ {[%clk 0:00:23.5]} 38. Kg1 {[%clk 0:00:44]} 38...
Qxf5 {[%clk 0:00:22.7]} 39. Rxe3 {[%clk 0:00:41.1]} 39... Rxe3 {[%clk
0:00:23.8]} 40. Qxe3 {[%clk 0:00:41.4]} 40... Qb1+ {[%clk 0:00:25.4]} 41. Kg2
{[%clk 0:00:41.8]} 41... Qxa2+ {[%clk 0:00:26.6]} 42. Kg3 {[%clk 0:00:43.4]}
42... Qf7 {[%clk 0:00:27.3]} 43. Qb6 {[%clk 0:00:41.2]} 43... Qg6+ {[%clk
0:00:26.7]} 44. Kf3 {[%clk 0:00:40.9]} 44... Qd3+ {[%clk 0:00:27.4]} 45. Kf2
{[%clk 0:00:41.1]} 45... Qd2+ {[%clk 0:00:25.8]} 46. Kf3 {[%clk 0:00:41.8]}
46... Qxh2 {[%clk 0:00:23.8]} 47. Qxa6 {[%clk 0:00:42.5]} 47... Qh1+ {[%clk
0:00:24.7]} 48. Kf2 {[%clk 0:00:43.1]} 48... Qh4+ {[%clk 0:00:24.7]} 49. Kf3
{[%clk 0:00:43.7]} 49... Qh5+ {[%clk 0:00:25.7]} 50. Kf2 {[%clk 0:00:41.9]}
50... Qc5+ {[%clk 0:00:26.2]} 51. Kf3 {[%clk 0:00:43.1]} 51... Qc3+ {[%clk
0:00:26.5]} 52. Kf2 {[%clk 0:00:43.4]} 52... Qd2+ {[%clk 0:00:24.8]} 53. Kf3
{[%clk 0:00:43.3]} 53... Qd5+ {[%clk 0:00:26]} 54. Kf2 {[%clk 0:00:43.6]} 54...
Kh7 {[%clk 0:00:27.3]} 55. Qc8 {[%clk 0:00:40.6]} 55... Qh5 {[%clk 0:00:26.2]}
56. Qd7 {[%clk 0:00:37.8]} 56... d5 {[%clk 0:00:26]} 57. f5 {[%clk 0:00:35.2]}
57... Qh4+ {[%clk 0:00:26.2]} 58. Kf3 {[%clk 0:00:34.9]} 58... Qe4+ {[%clk
0:00:26.4]} 59. Kf2 {[%clk 0:00:36]} 59... Qe5 {[%clk 0:00:27.8]} 60. Qf7 {[%clk
0:00:35]} 60... d4 {[%clk 0:00:23.7]} 61. Qg6+ {[%clk 0:00:14.1]} 61... Kg8
{[%clk 0:00:23.6]} 62. Qg4 {[%clk 0:00:14.2]} 62... Qe3+ {[%clk 0:00:23]} 63.
Kf1 {[%clk 0:00:13.1]} 63... Qe5 {[%clk 0:00:21.7]} 64. Kf2 {[%clk 0:00:12.3]}
64... Kf8 {[%clk 0:00:20.3]} 65. Qg5 {[%clk 0:00:12.2]} 65... Kg8 {[%clk
0:00:14.2]} 66. Qg4 {[%clk 0:00:12.6]} 1/2-1/2

[Event "*** MasterClass Titled Tuesday Blitz"]
[Site "Chess.com"]
[Date "2017.09.05"]
[Round "5"]
[White "aa175"]
[Black "krzyzan94"]
[Result "0-1"]
[WhiteElo "1847"]
[BlackElo "2491"]
[TimeControl "180+2"]
[EndTime "14:09:49 PDT"]
[Termination "krzyzan94 won by resignation"]

1. e4 {[%clk 0:03:01.9]} 1... c5 {[%clk 0:02:58.4]} 2. Nf3 {[%clk 0:02:58.7]}
2... e6 {[%clk 0:02:58.8]} 3. Nc3 {[%clk 0:02:57]} 3... Nc6 {[%clk 0:02:58.9]}
4. Bc4 {[%clk 0:02:55.3]} 4... a6 {[%clk 0:02:54.8]} 5. a4 {[%clk 0:02:55.9]}
5... g5 {[%clk 0:02:51.8]} 6. h3 {[%clk 0:02:40.4]} 6... Bg7 {[%clk 0:02:51.5]}
7. d3 {[%clk 0:02:40.5]} 7... h6 {[%clk 0:02:52.2]} 8. Be3 {[%clk 0:02:40.6]}
8... d6 {[%clk 0:02:49]} 9. Qe2 {[%clk 0:02:40.3]} 9... Nge7 {[%clk 0:02:49.6]}
10. Bb3 {[%clk 0:02:22]} 10... Nd4 {[%clk 0:02:46.6]} 11. Bxd4 {[%clk
0:02:15.1]} 11... cxd4 {[%clk 0:02:48.5]} 12. Na2 {[%clk 0:02:16.7]} 12... Qa5+
{[%clk 0:02:49.7]} 13. Qd2 {[%clk 0:02:16]} 13... Qxd2+ {[%clk 0:02:50.1]} 14.
Nxd2 {[%clk 0:02:17.9]} 14... Nc6 {[%clk 0:02:51.7]} 15. Nc4 {[%clk 0:02:17.3]}
15... Ke7 {[%clk 0:02:51]} 16. Nb6 {[%clk 0:02:18.4]} 16... Rb8 {[%clk 0:02:52]}
17. Nxc8+ {[%clk 0:02:20.3]} 17... Rhxc8 {[%clk 0:02:53]} 18. Kd2 {[%clk
0:02:13.7]} 18... Na5 {[%clk 0:02:54.1]} 19. Rac1 {[%clk 0:02:12.6]} 19... Rc5
{[%clk 0:02:53.7]} 20. Nb4 {[%clk 0:02:02.1]} 20... Rbc8 {[%clk 0:02:52.4]} 21.
g4 {[%clk 0:01:59.2]} 21... Be5 {[%clk 0:02:52.8]} 22. Ke2 {[%clk 0:01:48.8]}
22... Nxb3 {[%clk 0:02:52.2]} 0-1

[Event "*** MasterClass Titled Tuesday Blitz"]
[Site "Chess.com"]
[Date "2017.09.05"]
[Round "5"]
[White "cheese111"]
[Black "Blitzking4444"]
[Result "1-0"]
[WhiteElo "2306"]
[BlackElo "2084"]
[TimeControl "180+2"]
[EndTime "14:12:16 PDT"]
[Termination "cheese111 won on time"]

1. e4 {[%clk 0:03:01.9]} 1... e6 {[%clk 0:03:01]} 2. d4 {[%clk 0:03:02.5]} 2...
d5 {[%clk 0:03:02.2]} 3. Nd2 {[%clk 0:03:04]} 3... Be7 {[%clk 0:03:03.2]} 4.
Ngf3 {[%clk 0:03:04.7]} 4... Nf6 {[%clk 0:03:04.2]} 5. e5 {[%clk 0:03:06.2]}
5... Nfd7 {[%clk 0:03:05.4]} 6. Bd3 {[%clk 0:03:07.7]} 6... c5 {[%clk
0:03:06.6]} 7. c3 {[%clk 0:03:09.3]} 7... Nc6 {[%clk 0:03:07.8]} 8. O-O {[%clk
0:03:10.3]} 8... a5 {[%clk 0:03:08.9]} 9. Re1 {[%clk 0:03:08.2]} 9... cxd4
{[%clk 0:03:09.8]} 10. cxd4 {[%clk 0:03:08.8]} 10... Qb6 {[%clk 0:03:11.5]} 11.
a3 {[%clk 0:02:33.9]} 11... Nxd4 {[%clk 0:02:32]} 12. Nxd4 {[%clk 0:02:35.8]}
12... Qxd4 {[%clk 0:02:33.8]} 13. Nf3 {[%clk 0:02:35.6]} 13... Qb6 {[%clk
0:02:35]} 14. Be3 {[%clk 0:02:36.2]} 14... Bc5 {[%clk 0:02:30.5]} 15. Rc1 {[%clk
0:02:34.2]} 15... Bxe3 {[%clk 0:02:23.3]} 16. Rxe3 {[%clk 0:02:36.1]} 16... Nc5
{[%clk 0:01:48.6]} 17. Bb1 {[%clk 0:02:29.2]} 17... Bd7 {[%clk 0:01:22.2]} 18.
Qd4 {[%clk 0:02:28.5]} 18... Na4 {[%clk 0:01:02.2]} 19. Qg4 {[%clk 0:02:25.1]}
19... Qxb2 {[%clk 0:00:54.3]} 20. Rce1 {[%clk 0:02:25.9]} 20... g6 {[%clk
0:00:38.2]} 21. Qg5 {[%clk 0:02:15.9]} 21... Qb6 {[%clk 0:00:04.1]} 22. Qf6
{[%clk 0:02:16.6]} 22... Rf8 {[%clk 0:00:04.4]} 23. Ng5 {[%clk 0:02:16.4]} 23...
h6 {[%clk 0:00:05.1]} 24. Nxf7 {[%clk 0:02:12.2]} 1-0

[Event "*** MasterClass Titled Tuesday Blitz"]
[Site "Chess.com"]
[Date "2017.09.05"]
[Round "5"]
[White "Drags95"]
[Black "Keranke"]
[Result "0-1"]
[WhiteElo "2548"]
[BlackElo "2688"]
[TimeControl "180+2"]
[EndTime "14:12:21 PDT"]
[Termination "Keranke won by resignation"]

1. e4 {[%clk 0:03:02]} 1... g6 {[%clk 0:02:59.3]} 2. d4 {[%clk 0:03:02]} 2...
Bg7 {[%clk 0:03:00.9]} 3. Nc3 {[%clk 0:03:02.4]} 3... d6 {[%clk 0:03:02.5]} 4.
Be2 {[%clk 0:03:03.7]} 4... a6 {[%clk 0:03:03.6]} 5. h4 {[%clk 0:03:04.8]} 5...
h5 {[%clk 0:03:01.2]} 6. Be3 {[%clk 0:03:02.3]} 6... b5 {[%clk 0:03:02.1]} 7.
Qd2 {[%clk 0:03:03.3]} 7... Bb7 {[%clk 0:03:02.9]} 8. f3 {[%clk 0:03:04.6]} 8...
Nd7 {[%clk 0:03:04.1]} 9. Nh3 {[%clk 0:03:05.4]} 9... c5 {[%clk 0:03:04.3]} 10.
dxc5 {[%clk 0:02:53.2]} 10... Nxc5 {[%clk 0:03:06.2]} 11. O-O-O {[%clk
0:02:53.9]} 11... Rc8 {[%clk 0:03:05.7]} 12. Kb1 {[%clk 0:02:52]} 12... Qa5
{[%clk 0:03:05.4]} 13. Nd5 {[%clk 0:02:31.9]} 13... Qxd2 {[%clk 0:03:07.3]} 14.
Rxd2 {[%clk 0:02:32.5]} 14... Na4 {[%clk 0:03:04.1]} 15. Bd4 {[%clk 0:02:27.1]}
15... Bxd4 {[%clk 0:02:52.3]} 16. Rxd4 {[%clk 0:02:29]} 16... Bxd5 {[%clk
0:02:51.2]} 17. exd5 {[%clk 0:02:31]} 17... Nf6 {[%clk 0:02:52.1]} 18. Nf4
{[%clk 0:02:28.6]} 18... Nb6 {[%clk 0:02:45.5]} 19. c3 {[%clk 0:02:06.4]} 19...
Kd7 {[%clk 0:02:43.8]} 20. Bd1 {[%clk 0:02:02.4]} 20... Rc4 {[%clk 0:02:42.8]}
21. Rxc4 {[%clk 0:01:58.9]} 21... bxc4 {[%clk 0:02:43.4]} 22. Be2 {[%clk
0:01:58]} 22... Rg8 {[%clk 0:02:35.7]} 23. Rd1 {[%clk 0:01:56.1]} 23... g5
{[%clk 0:02:36.8]} 24. hxg5 {[%clk 0:01:57.2]} 24... Rxg5 {[%clk 0:02:38.7]} 25.
Rd4 {[%clk 0:01:58.4]} 25... e5 {[%clk 0:02:19.2]} 26. dxe6+ {[%clk 0:01:57.6]}
26... fxe6 {[%clk 0:02:21.1]} 27. Bf1 {[%clk 0:01:24.3]} 27... e5 {[%clk
0:02:06.6]} 28. Nh3 {[%clk 0:01:25.3]} 28... exd4 {[%clk 0:02:07.3]} 29. Nxg5
{[%clk 0:01:26.4]} 29... dxc3 {[%clk 0:02:00.6]} 30. bxc3 {[%clk 0:01:27.3]}
30... Nfd5 {[%clk 0:02:02]} 31. Ne4 {[%clk 0:01:25.5]} 31... Ne3 {[%clk
0:02:00.2]} 32. Nd2 {[%clk 0:01:25]} 32... h4 {[%clk 0:01:55.5]} 33. f4 {[%clk
0:01:18]} 33... d5 {[%clk 0:01:49.6]} 34. Kb2 {[%clk 0:01:17.2]} 34... Na4+
{[%clk 0:01:47.1]} 0-1

[Event "*** MasterClass Titled Tuesday Blitz"]
[Site "Chess.com"]
[Date "2017.09.05"]
[Round "5"]
[White "liquormark"]
[Black "Hafez_Bakr"]
[Result "0-1"]
[WhiteElo "2079"]
[BlackElo "1874"]
[TimeControl "180+2"]
[EndTime "14:12:47 PDT"]
[Termination "Hafez_Bakr won by resignation"]

1. c4 {[%clk 0:03:00.7]} 1... f5 {[%clk 0:02:59.6]} 2. Nc3 {[%clk 0:03:01.7]}
2... Nf6 {[%clk 0:02:59.7]} 3. Nf3 {[%clk 0:03:02.9]} 3... d6 {[%clk 0:03:00.1]}
4. g3 {[%clk 0:03:02.1]} 4... e5 {[%clk 0:03:01]} 5. d3 {[%clk 0:03:02.6]} 5...
Be7 {[%clk 0:03:02]} 6. Bg2 {[%clk 0:03:04.1]} 6... O-O {[%clk 0:03:01.1]} 7.
Rb1 {[%clk 0:03:05.2]} 7... a5 {[%clk 0:03:00.8]} 8. a3 {[%clk 0:03:05.9]} 8...
c5 {[%clk 0:03:00.1]} 9. O-O {[%clk 0:03:05.5]} 9... Nc6 {[%clk 0:03:00.3]} 10.
Bd2 {[%clk 0:03:06.3]} 10... h6 {[%clk 0:02:57.3]} 11. b4 {[%clk 0:02:56.9]}
11... axb4 {[%clk 0:02:57.1]} 12. axb4 {[%clk 0:02:57.7]} 12... Nxb4 {[%clk
0:02:57.7]} 13. Nb5 {[%clk 0:02:51.1]} 13... Nc6 {[%clk 0:02:53.1]} 14. Nh4
{[%clk 0:02:41.7]} 14... Kh7 {[%clk 0:02:46.7]} 15. Ra1 {[%clk 0:02:39.4]} 15...
Be6 {[%clk 0:02:39.2]} 16. Rxa8 {[%clk 0:02:28.8]} 16... Qxa8 {[%clk 0:02:39.4]}
17. Nc7 {[%clk 0:02:30.1]} 17... Qc8 {[%clk 0:02:39.8]} 18. Nxe6 {[%clk
0:02:30]} 18... Qxe6 {[%clk 0:02:40.8]} 19. Qb1 {[%clk 0:02:28.1]} 19... Qd7
{[%clk 0:02:34.6]} 20. Qb6 {[%clk 0:02:13.1]} 20... Bd8 {[%clk 0:02:27.8]} 21.
Qb5 {[%clk 0:02:02.9]} 21... Nd4 {[%clk 0:02:25]} 22. Qxd7 {[%clk 0:01:56.4]}
22... Nxe2+ {[%clk 0:02:24.4]} 23. Kh1 {[%clk 0:01:56.8]} 23... Nxd7 {[%clk
0:02:24.9]} 24. Bxb7 {[%clk 0:01:57.5]} 24... Bxh4 {[%clk 0:02:20.7]} 25. gxh4
{[%clk 0:01:54.6]} 25... Nd4 {[%clk 0:02:20.8]} 26. f4 {[%clk 0:01:51.7]} 26...
g6 {[%clk 0:02:16.8]} 27. Bd5 {[%clk 0:01:46.8]} 27... Nf6 {[%clk 0:02:15.1]}
28. fxe5 {[%clk 0:01:45.3]} 28... dxe5 {[%clk 0:02:15.4]} 29. Bg2 {[%clk
0:01:37.7]} 29... Rb8 {[%clk 0:02:10.9]} 30. Re1 {[%clk 0:01:37.3]} 30... Rb2
{[%clk 0:02:10.6]} 31. Bc3 {[%clk 0:01:38]} 31... Rb3 {[%clk 0:02:07.7]} 32.
Bxd4 {[%clk 0:01:14.7]} 32... exd4 {[%clk 0:02:07.7]} 33. Bf1 {[%clk 0:01:16.2]}
33... Ng4 {[%clk 0:02:05]} 34. Re7+ {[%clk 0:01:12]} 34... Kg8 {[%clk 0:02:02]}
35. Rc7 {[%clk 0:00:54.6]} 35... Rb1 {[%clk 0:02:02.3]} 36. Kg2 {[%clk
0:00:42.9]} 36... Ne3+ {[%clk 0:02:04.2]} 37. Kf3 {[%clk 0:00:43.6]} 37... Rxf1+
{[%clk 0:02:04.6]} 38. Ke2 {[%clk 0:00:45.5]} 0-1

[Event "*** MasterClass Titled Tuesday Blitz"]
[Site "Chess.com"]
[Date "2017.09.05"]
[Round "5"]
[White "Daniela_Movileanu"]
[Black "PlotnikovPavel"]
[Result "0-1"]
[WhiteElo "2012"]
[BlackElo "2468"]
[TimeControl "180+2"]
[EndTime "14:13:27 PDT"]
[Termination "PlotnikovPavel won by resignation"]

1. e4 {[%clk 0:03:01.9]} 1... e6 {[%clk 0:03:00.5]} 2. d4 {[%clk 0:03:02]} 2...
d5 {[%clk 0:03:01.5]} 3. Nd2 {[%clk 0:03:02]} 3... Be7 {[%clk 0:03:02.2]} 4.
Ngf3 {[%clk 0:03:02.1]} 4... Nf6 {[%clk 0:03:02.7]} 5. e5 {[%clk 0:03:03.3]}
5... Nfd7 {[%clk 0:03:03.5]} 6. Bd3 {[%clk 0:03:04.9]} 6... c5 {[%clk
0:03:04.6]} 7. c3 {[%clk 0:03:06.4]} 7... Nc6 {[%clk 0:03:05.8]} 8. O-O {[%clk
0:03:06.8]} 8... O-O {[%clk 0:03:06.4]} 9. h3 {[%clk 0:02:59]} 9... cxd4 {[%clk
0:03:06.3]} 10. cxd4 {[%clk 0:02:59.3]} 10... Qb6 {[%clk 0:03:07.7]} 11. Nb3
{[%clk 0:02:58.9]} 11... a5 {[%clk 0:03:09.2]} 12. Bg5 {[%clk 0:02:41.9]} 12...
h6 {[%clk 0:03:03.1]} 13. Bxe7 {[%clk 0:02:42.1]} 13... Nxe7 {[%clk 0:03:05]}
14. Rb1 {[%clk 0:02:39]} 14... Nb8 {[%clk 0:02:58.6]} 15. Nc5 {[%clk 0:02:38.3]}
15... Bd7 {[%clk 0:02:52]} 16. a3 {[%clk 0:02:37.1]} 16... a4 {[%clk 0:02:49.3]}
17. b4 {[%clk 0:02:37.6]} 17... Bb5 {[%clk 0:02:47]} 18. Nh2 {[%clk 0:02:24.8]}
18... Nbc6 {[%clk 0:02:44]} 19. Bxb5 {[%clk 0:02:14.9]} 19... Qxb5 {[%clk
0:02:45.1]} 20. Ng4 {[%clk 0:02:08.9]} 20... Rfd8 {[%clk 0:02:27]} 21. Ne3
{[%clk 0:01:51.4]} 21... Ra7 {[%clk 0:02:20.4]} 22. Nc2 {[%clk 0:00:41.2]} 22...
b6 {[%clk 0:02:12]} 23. Nd3 {[%clk 0:00:41.6]} 23... Nf5 {[%clk 0:02:12]} 24.
Nf4 {[%clk 0:00:39.1]} 24... Qc4 {[%clk 0:02:01]} 25. Ne3 {[%clk 0:00:38.3]}
25... Qxd4 {[%clk 0:01:50.2]} 26. Nxf5 {[%clk 0:00:38.5]} 26... Qxf4 {[%clk
0:01:48.4]} 27. Ne3 {[%clk 0:00:26.8]} 27... Nxe5 {[%clk 0:01:48.6]} 28. Rc1
{[%clk 0:00:28.3]} 28... Rad7 {[%clk 0:01:45.3]} 29. Qc2 {[%clk 0:00:29.1]}
29... d4 {[%clk 0:01:45.3]} 30. Nc4 {[%clk 0:00:29.4]} 30... d3 {[%clk
0:01:45.7]} 31. Qc3 {[%clk 0:00:29.2]} 31... d2 {[%clk 0:01:43.1]} 32. Rcd1
{[%clk 0:00:27.2]} 32... Nxc4 {[%clk 0:01:42.6]} 33. g3 {[%clk 0:00:27.2]} 33...
Qd4 {[%clk 0:01:42]} 0-1